bitfinex/quotes_SOLUSD_20250802
["timestamp","ask_amount","ask_price","bid_price","bid_amount"]
[1754098625898,0.03,164.46,164.44,0.71]
[1754098626211,0.03,164.46,164.45,0.71]
[1754098626995,0.03,164.46,164.45,7.3867729]
[1754098627206,0.03,164.46,164.45,96.0667729]
[1754098631108,0.03,164.46,164.45,102.14764854]
[1754098631328,0.03,164.46,164.45,89.39]
[1754098631490,0.03,164.46,164.45,96.0667729]
[1754098633703,0.03,164.46,164.45,139.0267729]
[1754098637301,0.03,164.46,164.45,132.35]
[1754098637501,0.03,164.46,164.45,139.0267729]
[1754098644818,0.03,164.46,164.45,145.10764854]
[1754098646431,0.03,164.46,164.45,161.89233251]
[1754098647823,0.03,164.48,164.47,94.73013619]
[1754098648026,0.03,164.48,164.47,144.34690909]
[1754098648214,0.03,164.48,164.47,145.05690909]
[1754098651148,0.03,164.48,164.47,161.84159306]
[1754098653833,0.03,164.5,164.49,94.69939692]
[1754098654034,0.03,164.5,164.49,144.31616982]
[1754098654234,0.03,164.5,164.49,145.01616982]
[1754098660533,0.69,164.55,164.53,88.39]
[1754098660727,0.03,164.55,164.54,47.19995918]
[1754098661051,0.03,164.55,164.54,135.58995918]
[1754098661855,0.03,164.55,164.54,141.66750871]
[1754098662231,0.03,164.55,164.54,142.36750871]
[1754098662861,0.03,164.55,164.54,144.76250954]
[1754098670842,0.03,164.55,164.54,147.19715454]
[1754098677166,0.03,164.55,164.54,140.54219453]
[1754098677346,0.03,164.55,164.54,147.19715454]
[1754098677542,0.03,164.57,164.56,6.07681088]
[1754098677749,0.03,164.57,164.56,55.63177089]
[1754098681744,0.74,164.57,164.56,55.63177089]
[1754098682252,0.74,164.57,164.56,12.73177089]
[1754098682467,0.74,164.57,164.56,55.63177089]
[1754098683470,0.03,164.57,164.56,143.99177089]
[1754098683669,0.03,164.57,164.56,131.26]
[1754098683968,0.74,164.57,164.56,131.26]
[1754098684770,0.74,164.57,164.56,135.52003751]
[1754098686047,0.74,164.57,164.56,131.26]
[1754098686557,0.74,164.57,164.56,135.52003751]
[1754098688646,0.74,164.57,164.56,88.36]
[1754098688853,0.74,164.57,164.56,131.26]
[1754098692066,0.74,164.57,164.56,135.52003751]
[1754098692761,0.03,164.57,164.56,135.52003751]
[1754098693577,0.03,164.57,164.56,136.23003751]
[1754098693962,0.03,164.57,164.56,135.52003751]
[1754098699690,0.74,164.57,164.56,135.52003751]
[1754098701966,0.03,164.57,164.56,135.52003751]
[1754098702890,0.74,164.57,164.56,135.52003751]
[1754098704865,0.74,164.57,164.56,131.26]
[1754098711207,0.03,164.57,164.56,131.26]
[1754098712104,0.03,164.57,164.56,131.98]
[1754098712281,0.03,164.57,164.56,136.24003751]
[1754098716498,0.03,164.57,164.56,133.74003751]
[1754098718626,0.03,164.57,164.56,133.02003751]
[1754098723221,0.03,164.57,164.56,130.52003751]
[1754098723419,0.03,164.57,164.56,131.24003751]
[1754098723603,0.03,164.57,164.56,130.52003751]
[1754098724551,0.03,164.57,164.56,131.24003751]
[1754098725197,0.03,164.57,164.56,130.52003751]
[1754098725599,0.03,164.57,164.56,131.24003751]
[1754098729314,0.03,164.57,164.56,130.52003751]
[1754098730119,0.03,164.57,164.56,131.24003751]
[1754098732333,0.03,164.57,164.56,43.62]
[1754098732509,0.03,164.57,164.56,47.88003751]
[1754098732843,0.03,164.57,164.56,47.16003751]
[1754098734125,0.03,164.57,164.56,47.88003751]
[1754098734912,0.03,164.57,164.56,47.16003751]
[1754098735610,0.03,164.57,164.56,47.88003751]
[1754098741031,0.03,164.57,164.56,143.55684839]
[1754098751352,0.1,164.58,164.57,89.57]
[1754098751647,0.1,164.58,164.57,94.50003751]
[1754098753257,0.1,164.58,164.57,93.83003751]
[1754098753754,0.1,164.58,164.57,99.90647914]
[1754098753940,0.1,164.58,164.57,100.57647914]
[1754098754930,0.1,164.58,164.57,99.90647914]
[1754098755126,0.76,164.58,164.57,89.57]
[1754098755326,0.76,164.58,164.57,136.67003751]
[1754098758758,0.1,164.58,164.57,136.67003751]
[1754098761244,0.1,164.58,164.57,133.08]
[1754098761564,0.1,164.58,164.57,137.34003751]
[1754098763667,0.1,164.58,164.57,143.41647914]
[1754098765361,0.1,164.58,164.57,136.67003751]
[1754098765564,0.76,164.58,164.57,136.67003751]
[1754098766152,0.76,164.58,164.57,132.41]
[1754098772664,0.76,164.58,164.57,89.57]
[1754098772867,0.76,164.58,164.57,132.39]
[1754098773670,0.76,164.58,164.57,132.45]
[1754098778079,0.76,164.58,164.57,89.63]
[1754098778573,5.02003751,164.58,164.57,89.63]
[1754098779394,0.76,164.58,164.57,89.63]
[1754098779757,5.02003751,164.58,164.57,0.06]
[1754098780058,5.02003751,164.58,164.54,0.06]
[1754098780059,42.78468397,164.55,164.54,0.06]
[1754098780253,42.78468397,164.55,164.53,0.06]
[1754098780254,16.78468397,164.54,164.53,0.06]
[1754098780489,21.04472148,164.54,164.53,0.06]
[1754098780873,26.86567312,164.54,164.53,0.06]
[1754098781176,40.02567948,164.54,164.53,0.06]
[1754098781654,55.29438737,164.54,164.53,0.06]
[1754098781853,100.89181078,164.54,164.46,0.06]
[1754098782068,4.26003751,164.47,164.46,0.06]
[1754098782490,0.71,164.47,164.46,0.06]
[1754098782688,21.75472148,164.47,164.46,0.06]
[1754098782855,25.8349282,164.47,164.46,0.06]
[1754098783208,30.93441301,164.47,164.46,0.06]
[1754098783356,25.8349282,164.47,164.46,0.06]
[1754098783679,37.0145492,164.47,164.46,0.06]
[1754098783886,31.91506439,164.47,164.46,0.06]
[1754098784052,37.0145492,164.47,164.46,0.06]
[1754098784259,16.78468397,164.46,164.42,0.06]
[1754098784467,4.26003751,164.43,164.42,0.06]
[1754098784857,0.71,164.43,164.42,0.06]
[1754098785058,7.38087837,164.43,164.42,0.06]
[1754098786790,17.49468397,164.46,164.42,0.76]
[1754098787080,24.16556234,164.46,164.42,0.76]
[1754098787276,24.16556234,164.46,164.43,0.7]
[1754098788465,6.67087837,164.47,164.42,6.73087837]
[1754098788662,6.67087837,164.48,164.42,0.06]
[1754098788865,6.67087837,164.48,164.43,6.67087837]
[1754098789082,0.71,164.48,164.42,0.06]
[1754098789288,7.38087837,164.48,164.42,6.73087837]
[1754098789885,32.67087837,164.49,164.43,6.67087837]
[1754098790274,6.67087837,164.48,164.43,6.67087837]
[1754098790480,6.67087837,164.48,164.44,0.7]
[1754098790970,6.67087837,164.48,164.43,6.67087837]
[1754098791186,6.67087837,164.48,164.45,0.7]
[1754098791900,7.38087837,164.48,164.45,0.7]
[1754098792596,6.67087837,164.48,164.42,0.06]
[1754098792798,6.67087837,164.44,164.42,0.06]
[1754098793003,0.71,164.47,164.42,0.06]
[1754098793004,6.67087837,164.43,164.42,0.06]
[1754098793385,7.38087837,164.43,164.42,0.06]
[1754098797000,0.71,164.43,164.42,0.06]
[1754098797522,0.71,164.44,164.42,0.06]
[1754098797686,7.38087837,164.44,164.42,0.06]
[1754098798309,0.03,164.46,164.42,0.06]
[1754098798493,0.03,164.46,164.43,7.37087837]
[1754098798815,0.03,164.46,164.44,0.7]
[1754098803018,0.03,164.46,164.43,6.67087837]
[1754098803186,0.03,164.46,164.45,0.67]
[1754098807719,0.03,164.46,164.45,90.27]
[1754098810516,0.03,164.46,164.45,97.12624167]
[1754098813297,0.03,164.46,164.45,103.20711731]
[1754098813707,0.03,164.46,164.45,147.16711731]
[1754098816304,0.03,164.46,164.45,140.31087564]
[1754098816512,0.03,164.46,164.45,147.16711731]
[1754098817325,0.03,164.48,164.47,89.57]
[1754098817505,0.03,164.48,164.47,140.32624167]
[1754098817706,0.03,164.48,164.47,140.99624167]
[1754098819428,0.03,164.48,164.47,147.07637786]
[1754098820212,0.03,164.48,164.47,163.86106183]
[1754098822330,0.66,164.54,164.49,6.07939692]
[1754098822538,6.85624167,164.57,164.51,6.85624167]
[1754098822842,0.66,164.53,164.52,43.92]
[1754098823529,6.85624167,164.57,164.52,43.92]
[1754098823713,0.66,164.55,164.52,51.44624167]
[1754098826637,0.66,164.56,164.53,0.67]
[1754098826837,0.66,164.56,164.53,90.21]
[1754098827132,0.66,164.56,164.53,97.06624167]
[1754098828031,0.66,164.56,164.53,90.21]
[1754098828439,0.66,164.55,164.53,89.54]
[1754098833542,0.64,164.55,164.53,89.54]
[1754098835132,6.85624167,164.56,164.53,89.54]
[1754098835644,0.66,164.55,164.53,89.54]
[1754098841250,0.66,164.55,164.51,89.54]
[1754098841433,7.51624167,164.55,164.51,89.54]
[1754098841749,0.66,164.54,164.51,89.54]
[1754098841919,0.66,164.54,164.51,90.2]
[1754098842323,6.85624167,164.55,164.51,89.54]
[1754098842655,7.51624167,164.55,164.52,0.66]
[1754098844052,0.66,164.55,164.52,0.66]
[1754098844537,0.66,164.56,164.53,0.66]
[1754098844731,6.85624167,164.57,164.51,140.01624167]
[1754098845068,6.95624167,164.58,164.54,0.66]
[1754098845232,0.1,164.58,164.54,7.51624167]
[1754098845558,0.1,164.58,164.55,7.51624167]
[1754098845860,0.1,164.58,164.55,51.15624167]
[1754098846155,0.1,164.58,164.56,0.66]
[1754098846529,0.1,164.58,164.57,0.66]
[1754098854748,0.1,164.58,164.57,90.2]
[1754098857476,0.1,164.58,164.57,140.57624167]
[1754098858445,0.1,164.58,164.57,133.72]
[1754098858646,0.1,164.58,164.57,140.57624167]
[1754098862380,0.1,164.58,164.57,146.6526833]
[1754098863643,0.1,164.58,164.57,73.89736727]
[1754098863843,0.1,164.58,164.57,74.50501143]
[1754098866759,0.1,164.58,164.57,164.04501143]
[1754098866981,0.1,164.58,164.57,163.43736727]
[1754098867979,0.1,164.58,164.57,165.87112327]
[1754098869564,0.1,164.58,164.57,191.87112327]
[1754098870968,0.1,164.63,164.6,89.38]
[1754098871169,0.1,164.63,164.61,50.25624167]
[1754098871369,0.1,164.63,164.62,6.85624167]
[1754098871560,0.1,164.63,164.62,7.56624167]
[1754098871964,0.81,164.63,164.62,89.38]
[1754098872377,7.66624167,164.63,164.62,89.38]
[1754098873112,0.81,164.63,164.62,89.38]
[1754098875603,0.81,164.63,164.6,132.78]
[1754098878500,0.79,164.63,164.6,132.78]
[1754098878809,0.71,164.62,164.6,132.78]
[1754098879103,0.79,164.63,164.6,132.78]
[1754098879400,0.79,164.63,164.6,140.34624167]
[1754098879604,0.08,164.63,164.61,0.71]
[1754098880908,0.08,164.63,164.61,13.6411337]
[1754098881110,0.08,164.63,164.62,50.90624167]
[1754098881578,0.08,164.63,164.62,140.28624167]
[1754098882486,0.08,164.63,164.62,139.57624167]
[1754098882691,0.08,164.63,164.62,132.72]
[1754098883573,0.08,164.63,164.62,133.43]
[1754098884410,0.08,164.63,164.62,140.28624167]
[1754098884715,0.08,164.63,164.62,146.3608377]
[1754098896122,0.08,164.63,164.62,139.50459603]
[1754098896329,0.08,164.63,164.62,146.3608377]
[1754098897535,0.1,164.65,164.64,89.3]
[1754098897834,0.1,164.65,164.64,139.47624167]
[1754098898131,0.1,164.65,164.64,140.16624167]
[1754098898708,0.1,164.65,164.64,146.24009978]
[1754098899724,0.1,164.65,164.64,139.38385811]
[1754098899932,0.1,164.65,164.64,146.24009978]
[1754098900302,0.77,164.65,164.64,96.15624167]
[1754098900608,0.77,164.65,164.64,139.49624167]
[1754098900815,0.1,164.65,164.64,139.49624167]
[1754098901207,0.77,164.65,164.64,139.49624167]
[1754098902538,0.1,164.65,164.64,139.49624167]
[1754098903034,0.77,164.65,164.64,139.49624167]
[1754098903610,0.1,164.65,164.64,146.26009978]
[1754098904111,0.1,164.65,164.64,151.36727678]
[1754098908241,0.03,164.67,164.66,6.07312036]
[1754098908412,0.03,164.67,164.66,145.48936203]
[1754098908614,0.03,164.67,164.66,146.17936203]
[1754098910918,0.03,164.67,164.66,145.48936203]
[1754098911113,0.03,164.67,164.66,146.17936203]
[1754098912349,0.03,164.67,164.66,172.17936203]
[1754098913212,0.03,164.67,164.66,184.14278103]
[1754098913422,0.67,164.73,164.67,89.17]
[1754098913618,0.67,164.73,164.68,44.01]
[1754098913847,0.67,164.74,164.71,6.85624167]
[1754098914022,0.67,164.74,164.72,50.17624167]
[1754098914437,0.67,164.74,164.73,6.85624167]
[1754098915115,5.1071774,164.78,164.73,6.85624167]
[1754098915315,0.67,164.75,164.74,43.3]
[1754098919948,0.67,164.75,164.74,132.47]
[1754098921955,0.67,164.75,164.74,89.17]
[1754098923838,0.65,164.75,164.74,89.17]
[1754098928037,0.03,164.77,164.74,89.17]
[1754098928237,0.75,164.77,164.74,89.87]
[1754098928655,0.75,164.77,164.75,43.14]
[1754098928860,0.75,164.77,164.75,132.31]
[1754098929063,0.75,164.77,164.75,89.17]
[1754098933648,4.37258668,164.76,164.74,89.17]
[1754098933843,0.72,164.75,164.74,89.17]
[1754098936073,7.55320851,164.75,164.74,89.17]
[1754098936440,7.55320851,164.75,164.71,43.08]
[1754098936648,6.83320851,164.75,164.71,132.25]
[1754098936855,0.72,164.74,164.71,132.25]
[1754098937273,0.72,164.73,164.71,132.25]
[1754098937864,0.72,164.73,164.71,89.17]
[1754098938070,0.72,164.73,164.71,132.25]
[1754098939346,0.72,164.73,164.69,7.53320851]
[1754098939347,0.72,164.72,164.7,43.08]
[1754098939546,0.72,164.72,164.69,89.87]
[1754098939865,0.72,164.72,164.69,132.95]
[1754098941374,0.72,164.72,164.69,139.78320851]
[1754098941554,7.55320851,164.74,164.7,0.7]
[1754098942447,0.72,164.73,164.7,0.7]
[1754098944143,6.64519142,164.74,164.67,0.7]
[1754098944144,7.36519142,164.72,164.67,0.7]
[1754098944339,0.72,164.71,164.67,50.42519142]
[1754098944964,0.72,164.7,164.67,50.42519142]
[1754098946663,0.72,164.71,164.67,50.42519142]
[1754098946874,6.64519142,164.72,164.68,0.7]
[1754098947051,0.72,164.72,164.68,0.7]
[1754098947252,7.36519142,164.72,164.68,0.7]
[1754098947574,7.36519142,164.72,164.69,0.7]
[1754098948552,0.72,164.72,164.69,0.7]
[1754098948752,7.36519142,164.73,164.7,0.7]
[1754098949473,7.36519142,164.73,164.7,89.87]
[1754098952678,6.64519142,164.72,164.7,89.87]
[1754098953679,0.72,164.73,164.7,89.87]
[1754098953898,6.64519142,164.72,164.7,89.87]
[1754098954787,4.25371613,164.72,164.7,89.87]
[1754098962374,4.25371613,164.74,164.71,0.71]
[1754098962574,4.28371613,164.75,164.71,89.88]
[1754098963088,4.28371613,164.75,164.72,0.71]
[1754098963596,0.03,164.75,164.72,0.71]
[1754098966765,0.03,164.75,164.72,94.13371613]
[1754098967001,0.03,164.75,164.73,4.25371613]
[1754098967177,0.03,164.75,164.73,0.71]
[1754098967371,0.03,164.75,164.74,0.71]
[1754098970289,0.03,164.75,164.74,89.88]
[1754098984713,0.03,164.75,164.74,89.17]
[1754098984918,0.73,164.75,164.74,89.17]
[1754098985802,4.98371613,164.75,164.74,89.17]
[1754098991416,0.73,164.75,164.74,89.17]
[1754098992525,0.73,164.75,164.74,89.23]
[1754098993717,11.05351886,164.75,164.74,0.06]
[1754098995224,0.73,164.75,164.74,0.06]
[1754098995431,4.98371613,164.75,164.74,0.06]
[1754098997508,11.05351886,164.75,164.74,0.06]
[1754098999729,27.83820283,164.75,164.74,0.06]
[1754099000824,32.94893803,164.75,164.74,0.06]
[1754099001837,27.83820283,164.75,164.74,0.06]
[1754099003631,26.0,164.73,164.72,0.06]
[1754099003830,90.0784001,164.73,164.72,0.06]
[1754099004229,90.7784001,164.73,164.72,0.06]
[1754099004425,97.58796997,164.73,164.72,0.06]
[1754099005537,103.65850964,164.73,164.72,0.06]
[1754099006322,96.84893977,164.73,164.72,0.06]
[1754099012260,101.94363145,164.73,164.72,0.06]
[1754099014636,16.78468397,164.72,164.7,0.06]
[1754099014944,90.0784001,164.71,164.7,0.06]
[1754099015143,90.7684001,164.71,164.7,0.06]
[1754099016052,96.83967688,164.71,164.7,0.06]
[1754099018267,16.78468397,164.69,164.68,0.06]
[1754099018567,64.0784001,164.69,164.68,0.06]
[1754099018868,64.7684001,164.69,164.68,0.06]
[1754099020138,70.84041418,164.69,164.68,0.06]
[1754099021146,70.15041418,164.69,164.68,0.06]
[1754099021370,65.89669805,164.69,164.68,0.72]
[1754099021542,70.15041418,164.69,164.68,0.72]
[1754099027268,70.15041418,164.69,164.68,0.06]
[1754099029272,70.15041418,164.69,164.68,0.72]
[1754099031965,70.15041418,164.69,164.68,0.06]
[1754099032147,66.58669805,164.69,164.68,0.06]
[1754099032344,70.84041418,164.69,164.68,0.06]
[1754099032539,70.15041418,164.69,164.68,0.06]
[1754099032955,65.89669805,164.69,164.68,0.06]
[1754099033153,70.15041418,164.69,164.68,0.72]
[1754099033349,9.34840768,164.71,164.68,0.72]
[1754099033566,43.02,164.7,164.68,0.72]
[1754099035284,47.27371613,164.7,164.68,0.72]
[1754099039079,43.02,164.7,164.68,0.72]
[1754099039285,47.27371613,164.7,164.68,0.72]
[1754099042799,43.02,164.7,164.68,0.72]
[1754099042993,69.0,164.71,164.68,4.97371613]
[1754099043292,43.03,164.72,164.69,0.67]
[1754099043681,47.28371613,164.72,164.69,0.67]
[1754099044398,47.28371613,164.72,164.7,0.67]
[1754099045301,43.03,164.72,164.7,0.67]
[1754099045483,47.28371613,164.72,164.7,0.67]
[1754099045901,4.93371613,164.71,164.68,89.9]
[1754099046202,47.93371613,164.7,164.68,89.23]
[1754099047188,47.93371613,164.7,164.68,0.06]
[1754099048792,43.68,164.7,164.68,0.06]
[1754099048988,47.93371613,164.7,164.68,0.06]
[1754099049711,43.0,164.7,164.69,0.67]
[1754099049905,43.0,164.71,164.69,0.67]
[1754099050109,47.28371613,164.72,164.69,0.67]
[1754099050423,43.03,164.72,164.69,0.67]
[1754099051320,43.03,164.72,164.7,0.67]
[1754099054221,43.03,164.72,164.71,0.67]
[1754099054391,43.03,164.72,164.7,0.67]
[1754099055322,43.71,164.72,164.69,0.67]
[1754099055520,0.03,164.72,164.69,0.67]
[1754099055692,43.01,164.72,164.69,0.67]
[1754099056219,43.01,164.72,164.7,0.67]
[1754099057120,0.03,164.72,164.7,0.67]
[1754099057325,43.01,164.72,164.7,0.67]
[1754099058626,0.03,164.72,164.7,0.67]
[1754099058831,43.01,164.72,164.7,0.67]
[1754099060638,0.71,164.72,164.7,4.25371613]
[1754099060823,0.03,164.72,164.7,4.92371613]
[1754099063026,0.03,164.72,164.71,0.67]
[1754099064842,0.03,164.72,164.71,89.84]
[1754099065340,0.03,164.72,164.71,89.17]
[1754099065527,0.03,164.72,164.71,89.84]
[1754099065721,0.03,164.72,164.71,94.09371613]
[1754099066642,0.03,164.72,164.71,100.16499291]
[1754099068222,0.03,164.72,164.71,94.09371613]
[1754099068929,0.03,164.72,164.71,137.05371613]
[1754099076932,0.03,164.72,164.71,136.38371613]
[1754099077646,0.03,164.72,164.71,93.42371613]
[1754099080926,0.74,164.72,164.71,93.42371613]
[1754099081349,0.03,164.72,164.71,93.42371613]
[1754099083044,0.03,164.72,164.71,94.14371613]
[1754099086067,0.03,164.72,164.71,93.42371613]
[1754099087455,0.03,164.72,164.71,94.14371613]
[1754099088373,0.74,164.72,164.71,89.17]
[1754099095149,0.03,164.72,164.71,89.17]
[1754099095949,0.74,164.72,164.71,89.17]
[1754099098484,0.74,164.72,164.7,0.06]
[1754099100358,0.71,164.71,164.7,0.06]
[1754099100767,0.03,164.72,164.7,5.03371613]
[1754099102245,0.03,164.72,164.7,4.31371613]
[1754099102450,0.03,164.72,164.7,5.03371613]
[1754099105661,0.03,164.72,164.7,0.78]
[1754099113365,0.7,164.72,164.7,0.78]
[1754099113566,0.67,164.71,164.7,0.06]
[1754099113896,4.92371613,164.71,164.7,0.06]
[1754099117666,30.92371613,164.71,164.7,0.06]
[1754099120699,36.99499291,164.71,164.7,0.06]
[1754099121075,30.92371613,164.71,164.7,0.06]
[1754099121794,30.95371613,164.71,164.7,0.06]
[1754099122693,37.02499291,164.71,164.7,0.06]
[1754099124570,30.28371613,164.71,164.7,0.06]
[1754099124965,26.03,164.71,164.7,0.78]
[1754099127788,0.03,164.71,164.7,0.78]
[1754099134589,0.03,164.71,164.7,94.20371613]
[1754099135004,0.03,164.71,164.7,100.27536154]
[1754099135984,0.03,164.71,164.7,11.10536154]
[1754099138087,0.03,164.71,164.7,13.53763754]
[1754099138912,0.03,164.71,164.7,120.15250206]
[1754099139232,0.03,164.71,164.7,146.15250206]
[1754099139528,0.03,164.72,164.7,146.15250206]
[1754099139828,0.03,164.72,164.71,47.79371613]
[1754099140408,0.03,164.72,164.71,53.86499291]
[1754099144613,0.03,164.72,164.71,143.46499291]
[1754099145294,0.03,164.72,164.71,145.89697391]
[1754099148895,0.03,164.72,164.71,2.431981]
[1754099149089,0.74,164.72,164.71,47.07371613]
[1754099156522,0.03,164.72,164.71,42.82]
[1754099156724,0.03,164.72,164.71,47.77371613]
[1754099159517,0.03,164.72,164.71,137.37371613]
[1754099163309,0.03,164.72,164.71,136.67371613]
[1754099163715,0.73,164.72,164.71,136.67371613]
[1754099165931,0.73,164.72,164.71,136.73371613]
[1754099169352,0.03,164.72,164.71,136.73371613]
[1754099170341,0.03,164.72,164.71,137.43371613]
[1754099172930,0.03,164.72,164.71,143.50499291]
[1754099173329,0.03,164.72,164.71,145.93712091]
[1754099174546,0.03,164.72,164.71,171.93712091]
[1754099189043,0.03,164.74,164.73,6.07053967]
[1754099189243,0.03,164.74,164.73,142.6342558]
[1754099189469,0.03,164.74,164.73,143.3342558]
[1754099189765,0.03,164.74,164.73,145.7660888]
[1754099191266,0.03,164.74,164.73,145.0660888]
[1754099193968,0.03,164.74,164.73,142.6342558]
[1754099197765,0.03,164.74,164.73,138.38053967]
[1754099197972,0.03,164.74,164.73,142.6342558]
[1754099200185,0.03,164.74,164.73,143.3042558]
[1754099210270,0.7,164.8,164.75,89.57]
[1754099210583,0.7,164.8,164.79,4.25371613]
[1754099210778,0.7,164.8,164.79,136.52371613]
[1754099212957,0.7,164.8,164.79,132.27]
[1754099213163,0.7,164.8,164.79,136.52371613]
[1754099215191,0.7,164.8,164.79,89.57]
[1754099215369,0.7,164.8,164.79,132.27]
[1754099215570,0.7,164.8,164.78,42.7]
[1754099221501,0.7,164.8,164.78,89.57]
[1754099222273,4.25371613,164.79,164.72,10.38061113]
[1754099222482,4.25371613,164.78,164.73,42.68]
[1754099222681,0.7,164.77,164.73,46.93371613]
[1754099223296,0.7,164.77,164.73,42.68]
[1754099225387,0.7,164.77,164.73,43.37]
[1754099225990,0.7,164.77,164.73,4.94371613]
[1754099227509,0.7,164.77,164.73,94.51371613]
[1754099228875,0.7,164.77,164.73,90.26]
[1754099229485,0.7,164.77,164.73,94.51371613]
[1754099229803,0.7,164.77,164.74,0.69]
[1754099231595,6.06907536,164.77,164.73,90.32]
[1754099231785,0.7,164.76,164.73,90.32]
[1754099231999,0.7,164.75,164.73,90.32]
[1754099232305,0.7,164.76,164.73,90.32]
[1754099232505,16.78468397,164.75,164.73,0.06]
[1754099232718,0.7,164.76,164.73,0.06]
[1754099232892,0.7,164.76,164.73,0.75]
[1754099234505,4.0882468,164.75,164.73,0.75]
[1754099235224,4.7882468,164.76,164.73,0.75]
[1754099235809,4.0882468,164.76,164.73,0.75]
[1754099235989,4.0882468,164.76,164.74,0.69]
[1754099236310,4.0882468,164.77,164.73,4.31371613]
[1754099236502,4.0882468,164.77,164.74,0.69]
[1754099236702,4.7882468,164.77,164.74,0.69]
[1754099237607,4.7882468,164.77,164.73,4.24931552]
[1754099238295,4.0882468,164.77,164.73,4.24931552]
[1754099238496,0.7,164.76,164.73,4.24931552]
[1754099238806,4.7882468,164.77,164.73,4.24931552]
[1754099239179,4.7882468,164.77,164.74,4.25371613]
[1754099239594,0.7,164.79,164.76,4.25371613]
[1754099239906,4.11555898,164.8,164.77,4.94371613]
[1754099240089,0.03,164.8,164.77,4.94371613]
[1754099241009,0.03,164.8,164.77,7.32869151]
[1754099241316,0.03,164.8,164.78,7.32869151]
[1754099244017,0.03,164.8,164.78,0.69]
[1754099246032,0.03,164.8,164.78,7.32869151]
[1754099254108,0.03,164.8,164.78,96.89869151]
[1754099254527,0.03,164.8,164.78,96.20869151]
[1754099254737,0.72,164.8,164.78,96.20869151]
[1754099255105,0.03,164.8,164.78,96.20869151]
[1754099255607,0.03,164.8,164.78,96.88869151]
[1754099256105,0.72,164.8,164.78,96.20869151]
[1754099256934,0.03,164.8,164.78,96.20869151]
[1754099257534,0.03,164.8,164.78,96.88869151]
[1754099258412,0.03,164.8,164.78,139.52869151]
[1754099262849,0.03,164.8,164.78,137.13847118]
[1754099263540,0.72,164.8,164.78,132.21]
[1754099263761,0.72,164.8,164.78,89.57]
[1754099266319,0.03,164.8,164.78,90.25]
[1754099268513,0.03,164.8,164.78,94.49847118]
[1754099268733,0.72,164.8,164.78,93.81847118]
[1754099269544,0.03,164.8,164.78,93.81847118]
[1754099269743,0.03,164.8,164.78,94.49847118]
[1754099276039,0.03,164.8,164.78,93.81847118]
[1754099276354,0.72,164.8,164.78,93.81847118]
[1754099277437,0.03,164.8,164.78,93.81847118]
[1754099277642,0.03,164.8,164.78,94.49847118]
[1754099279268,4.11555898,164.8,164.78,94.49847118]
[1754099281354,4.08555898,164.79,164.78,94.49847118]
[1754099281756,4.08555898,164.79,164.78,4.92847118]
[1754099284131,0.03,164.8,164.78,100.56716883]